bitfinex/quotes_BTCUSD_20230901
["timestamp","ask_amount","ask_price","bid_price","bid_amount"]
[1693571572825,2.59185078,26095.0,26094.0,0.04619828]
[1693571574285,2.8395362,26095.0,26094.0,0.04619828]
[1693571574496,2.9157962,26095.0,26094.0,0.04619828]
[1693571574706,3.3791762,26095.0,26094.0,0.02335403]
[1693571574888,3.3791762,26095.0,26094.0,0.023099]
[1693571574889,3.3763562,26095.0,26094.0,0.023099]
[1693571575142,3.3750362,26095.0,26094.0,0.023099]
[1693571575349,3.3767762,26095.0,26094.0,0.018099]
[1693571575577,3.3666362,26095.0,26094.0,0.011099]
[1693571575781,3.3476762,26095.0,26094.0,0.012099]
[1693571575986,3.3434762,26095.0,26094.0,0.012099]
[1693571576190,3.3470162,26095.0,26094.0,0.011099]
[1693571576394,3.3765362,26095.0,26094.0,0.010099]
[1693571576602,3.3756962,26095.0,26094.0,0.010099]
[1693571576807,3.3390962,26095.0,26094.0,0.010099]
[1693571577018,2.66185078,26095.0,26094.0,0.010099]
[1693571577225,2.67785078,26095.0,26094.0,0.011099]
[1693571577432,1.52820678,26095.0,26094.0,0.011099]
[1693571577641,2.67785078,26095.0,26094.0,0.011099]
[1693571577846,2.64185078,26095.0,26094.0,0.03299977]
[1693571578052,2.67785078,26095.0,26094.0,0.03299977]
[1693571578474,3.12540496,26095.0,26094.0,0.03299977]
[1693571578585,3.54540496,26095.0,26094.0,0.03299977]
[1693571578787,3.54540496,26095.0,26094.0,0.010099]
[1693571578788,3.52806496,26095.0,26094.0,0.010099]
[1693571579048,3.48618496,26095.0,26094.0,0.010099]
[1693571579251,3.49122496,26095.0,26094.0,0.011099]
[1693571579457,3.71652496,26095.0,26094.0,0.011099]
[1693571579664,3.7639042,26095.0,26094.0,0.00909361]
[1693571579896,0.14,26093.0,26092.0,0.020099]
[1693571580096,0.14,26093.0,26089.0,0.020099]
[1693571580097,0.5431,26090.0,26089.0,0.020099]
[1693571580311,3.96174678,26090.0,26089.0,0.020099]
[1693571580515,4.37042678,26090.0,26089.0,0.020099]
[1693571580716,4.38068678,26090.0,26089.0,0.020099]
[1693571580926,4.37222678,26090.0,26089.0,0.020099]
[1693571581123,4.66912095,26090.0,26089.0,0.020099]
[1693571581324,5.85855195,26090.0,26089.0,0.020099]
[1693571581530,5.86257195,26090.0,26089.0,0.020099]
[1693571581729,5.86161195,26090.0,26089.0,0.020099]
[1693571581984,5.86521195,26090.0,26089.0,0.020099]
[1693571582186,5.88603195,26090.0,26089.0,0.020099]
[1693571582409,5.92437195,26090.0,26089.0,0.020099]
[1693571582750,2.89570978,26090.0,26089.0,0.020099]
[1693571582977,2.47010978,26090.0,26089.0,0.020099]
[1693571583180,2.50610978,26090.0,26089.0,0.020099]
[1693571583387,3.08104178,26090.0,26089.0,0.020099]
[1693571583591,3.15704178,26090.0,26089.0,0.04031691]
[1693571583794,3.15704178,26090.0,26089.0,0.02037013]
[1693571583795,4.34970795,26090.0,26089.0,0.02037013]
[1693571584003,5.89743992,26090.0,26089.0,0.02037013]
[1693571584163,5.95343992,26090.0,26089.0,0.02037013]
[1693571584356,4.83433375,26090.0,26089.0,0.02037013]
[1693571584559,5.40927625,26090.0,26089.0,0.02037013]
[1693571584764,5.40927625,26090.0,26089.0,0.020099]
[1693571584765,5.64087625,26090.0,26089.0,0.020099]
[1693571584939,6.04249625,26090.0,26089.0,0.020099]
[1693571585142,6.63173042,26090.0,26089.0,0.020099]
[1693571585388,6.78731042,26090.0,26089.0,0.020099]
[1693571585536,0.5431,26087.0,26086.0,0.020099]
[1693571585736,4.51207378,26087.0,26086.0,0.020099]
[1693571585940,6.29219625,26087.0,26086.0,0.020099]
[1693571586155,7.37362966,26087.0,26086.0,0.020099]
[1693571586366,7.40350966,26087.0,26086.0,0.020099]
[1693571586581,7.40350966,26087.0,26080.0,0.020099]
[1693571586582,0.02,26082.0,26080.0,0.020099]
[1693571586790,3.24233978,26081.0,26080.0,0.020099]
[1693571587197,2.70243878,26081.0,26080.0,0.020099]
[1693571587401,1.57217678,26081.0,26080.0,0.020099]
[1693571587628,1.55217678,26081.0,26080.0,0.03731571]
[1693571587860,1.55217678,26081.0,26080.0,0.03756313]
[1693571588337,1.104991,26081.0,26080.0,0.03756313]
[1693571588549,1.104991,26083.0,26080.0,0.05756313]
[1693571588771,1.49207778,26082.0,26081.0,0.02]
[1693571588938,1.89517778,26082.0,26080.0,0.05756313]
[1693571589163,1.528091,26081.0,26080.0,0.03756313]
[1693571589336,3.08543978,26081.0,26080.0,0.03756313]
[1693571589538,3.64057078,26081.0,26080.0,0.03756313]
[1693571589989,3.06543978,26081.0,26080.0,0.03756313]
[1693571590191,2.49030878,26081.0,26080.0,0.03756313]
[1693571590415,2.51030878,26081.0,26080.0,0.03756313]
[1693571590555,2.52430878,26081.0,26080.0,0.03756313]
[1693571590987,3.83147078,26081.0,26080.0,0.03756313]
[1693571591189,3.09943978,26081.0,26080.0,0.03756313]
[1693571591496,2.52430878,26081.0,26080.0,0.03756313]
[1693571592172,1.54607778,26081.0,26080.0,0.03756313]
[1693571592371,1.138991,26081.0,26080.0,0.03756313]
[1693571592577,1.138991,26081.0,26080.0,0.05756313]
[1693571592780,1.138991,26081.0,26080.0,0.63271613]
[1693571592781,0.034,26081.0,26080.0,0.63271613]
[1693571592981,0.42108678,26081.0,26080.0,0.05756313]
[1693571593181,1.69152836,26081.0,26080.0,0.03756313]
[1693571593407,4.12879514,26081.0,26080.0,0.03756313]
[1693571593580,6.4602902,26081.0,26080.0,0.02034642]
[1693571593782,6.4602902,26081.0,26080.0,0.021099]
[1693571593783,4.50732214,26081.0,26080.0,0.021099]
[1693571594209,6.2832304,26081.0,26080.0,0.021099]
[1693571594448,4.61366214,26081.0,26080.0,0.021099]
[1693571594575,4.37751156,26081.0,26080.0,0.021099]
[1693571594782,1.64661856,26081.0,26080.0,0.021099]
[1693571594991,1.49513156,26081.0,26080.0,0.023099]
[1693571595190,1.49313156,26081.0,26080.0,0.021099]
[1693571595448,1.89623156,26081.0,26080.0,0.03732059]
[1693571595592,3.08249356,26081.0,26080.0,0.03732059]
[1693571595791,3.65762456,26081.0,26080.0,0.03771179]
[1693571596112,3.67662456,26081.0,26080.0,0.03671179]
[1693571596312,3.67662456,26081.0,26080.0,0.0204902]
[1693571596313,4.17679873,26081.0,26080.0,0.0204902]
[1693571596520,4.19139873,26081.0,26080.0,0.0204902]
[1693571596718,3.77190456,26081.0,26080.0,0.020099]
[1693571597091,3.12649356,26081.0,26080.0,0.021099]
[1693571597499,3.70162456,26081.0,26080.0,0.03740835]
[1693571597968,3.64162456,26081.0,26080.0,0.03774662]
[1693571598172,1.52013156,26081.0,26080.0,0.03874662]
[1693571598583,2.67039356,26081.0,26080.0,0.03874662]
[1693571598797,3.07349356,26081.0,26080.0,0.03874662]
[1693571599010,3.64862456,26081.0,26080.0,0.03874662]
[1693571599866,3.64862456,26081.0,26080.0,0.03840835]
[1693571600107,3.07349356,26081.0,26080.0,0.03840835]
[1693571600320,3.09349356,26081.0,26080.0,0.03840835]
[1693571600738,3.09349356,26081.0,26080.0,0.022099]
[1693571600948,3.66862456,26081.0,26080.0,0.022099]
[1693571601151,3.09349356,26081.0,26080.0,0.022099]
[1693571601790,3.09349356,26081.0,26080.0,0.03943142]
[1693571602589,3.73762456,26081.0,26080.0,0.03943142]
[1693571602932,3.66862456,26081.0,26080.0,0.03943142]
[1693571603124,3.66862456,26081.0,26080.0,0.02243693]
[1693571603330,3.09349356,26081.0,26080.0,0.02243693]
[1693571603487,3.66862456,26081.0,26080.0,0.02243693]
[1693571603664,3.75396456,26081.0,26080.0,0.03961253]
[1693571603842,3.68862456,26081.0,26080.0,0.03961253]
[1693571604047,3.68862456,26081.0,26080.0,0.02243693]
[1693571604048,3.86142815,26081.0,26080.0,0.02243693]
[1693571604712,3.86142815,26081.0,26080.0,0.022099]
[1693571605155,5.60467961,26081.0,26080.0,0.022099]
[1693571605333,5.41417602,26081.0,26080.0,0.022099]
[1693571605559,5.34643602,26081.0,26080.0,0.022099]
[1693571605954,5.36643602,26081.0,26080.0,0.022099]
[1693571606169,5.76177602,26081.0,26080.0,0.022099]
[1693571606317,5.75793602,26081.0,26080.0,0.022099]
[1693571606490,6.14737019,26081.0,26080.0,0.022099]
[1693571606695,6.05371019,26081.0,26080.0,0.022099]
[1693571606908,6.05271019,26081.0,26080.0,0.021099]
[1693571607128,6.05271019,26081.0,26080.0,0.020099]
[1693571607129,5.65843602,26081.0,26080.0,0.020099]
[1693571607327,5.65843602,26081.0,26080.0,0.15751634]
[1693571607328,2.7632923,26081.0,26080.0,0.15751634]
[1693571607537,1.10531692,26082.0,26080.0,0.020099]
[1693571607745,2.7632923,26081.0,26080.0,0.02043727]
[1693571607947,2.7962923,26081.0,26080.0,0.02043727]
[1693571608155,1.10531692,26081.0,26080.0,0.02043727]
[1693571608356,3.17737908,26081.0,26080.0,0.02043727]
[1693571608555,3.21037908,26081.0,26080.0,0.02043727]
[1693571608760,2.7632923,26081.0,26080.0,0.61559027]
[1693571608991,0.38808678,26081.0,26080.0,0.04043727]
[1693571609195,3.15737908,26081.0,26080.0,0.02043727]
[1693571609440,3.73251008,26081.0,26080.0,0.02043727]
[1693571609636,5.29048325,26081.0,26080.0,0.02043727]
[1693571609839,5.71358325,26081.0,26080.0,0.02043727]
[1693571610042,5.32630908,26081.0,26080.0,0.02043727]
[1693571610242,5.34630908,26081.0,26080.0,0.02043727]
[1693571610672,5.36630908,26081.0,26080.0,0.02043727]
[1693571610883,5.43644908,26081.0,26080.0,0.020099]
[1693571611093,5.82120325,26081.0,26080.0,0.020099]
[1693571611394,5.36630908,26081.0,26080.0,0.020099]
[1693571611597,5.34630908,26081.0,26080.0,0.020099]
[1693571611800,5.36530908,26081.0,26080.0,0.020099]
[1693571612031,5.45446908,26081.0,26080.0,0.020099]
[1693571612224,5.49298908,26081.0,26080.0,0.020099]
[1693571612423,5.88032325,26081.0,26080.0,0.020099]
[1693571612622,5.77958325,26081.0,26080.0,0.020099]
[1693571612823,5.80658325,26081.0,26080.0,0.020099]
[1693571613101,5.90336325,26081.0,26080.0,0.020099]
[1693571613324,5.89358325,26081.0,26080.0,0.020099]
[1693571613525,5.87534325,26081.0,26080.0,0.020099]
[1693571613731,5.80658325,26081.0,26080.0,0.020099]
[1693571614930,5.41930908,26081.0,26080.0,0.020099]
[1693571615650,4.84417808,26081.0,26080.0,0.020099]
[1693571616121,4.84417808,26081.0,26080.0,0.03646991]
[1693571616686,5.57620908,26081.0,26080.0,0.03646991]
[1693571616897,5.64304908,26081.0,26080.0,0.03646991]
[1693571617130,6.02942325,26081.0,26080.0,0.020099]
[1693571617334,5.57620908,26081.0,26080.0,0.020099]
[1693571617888,5.37930908,26081.0,26080.0,0.020099]
[1693571618087,3.63391608,26081.0,26080.0,0.020099]
[1693571618490,5.51620908,26081.0,26080.0,0.03664502]
[1693571618665,5.60118908,26081.0,26080.0,0.03664502]
[1693571618867,5.60328908,26081.0,26080.0,0.03664502]
[1693571619100,5.37930908,26081.0,26080.0,0.020099]
[1693571619522,4.80417808,26081.0,26080.0,0.020099]
[1693571619724,5.39930908,26081.0,26080.0,0.0204368]
[1693571619932,5.86434325,26081.0,26080.0,0.0204368]
[1693571620130,5.78658325,26081.0,26080.0,0.0204368]
[1693571620347,5.39930908,26081.0,26080.0,0.0204368]
[1693571620752,5.39930908,26081.0,26080.0,0.020099]
[1693571621161,5.46854908,26081.0,26080.0,0.020099]
[1693571621366,5.47550908,26081.0,26080.0,0.020099]
[1693571621576,5.88278325,26081.0,26080.0,0.020099]
[1693571621780,5.80658325,26081.0,26080.0,0.020099]
[1693571622197,5.41930908,26081.0,26080.0,0.020099]
[1693571622403,4.80417808,26081.0,26080.0,0.020099]
[1693571622613,3.65391608,26081.0,26080.0,0.03673836]
[1693571622814,3.23081608,26081.0,26080.0,0.03707616]
[1693571623243,1.18575392,26081.0,26080.0,1.20738216]
[1693571623447,2.8232923,26081.0,26080.0,1.78253516]
[1693571623651,2.8139923,26081.0,26080.0,1.88253516]
[1693571623853,0.4031,26089.0,26083.0,0.02]
[1693571624066,0.51252576,26088.0,26085.0,1.745121]
[1693571624298,0.22937333,26094.0,26089.0,0.02]
[1693571624519,0.47883611,26093.0,26091.0,0.02]
[1693571624742,0.47883611,26093.0,26092.0,0.13741734]
[1693571624954,0.38708678,26093.0,26092.0,0.13741734]
[1693571625168,0.38708678,26093.0,26092.0,1.24237637]
[1693571625378,0.47883611,26093.0,26092.0,1.10495903]
[1693571625791,0.38708678,26093.0,26092.0,1.10495903]
[1693571626412,2.76136882,26093.0,26090.0,0.00038668]
[1693571626622,2.77915811,26093.0,26092.0,0.003]
[1693571626834,3.33999594,26093.0,26092.0,0.003]
[1693571627043,3.55314391,26093.0,26092.0,0.003]
[1693571627248,3.55314391,26093.0,26092.0,0.006]
[1693571627249,3.67830391,26093.0,26092.0,0.006]
[1693571627459,3.70830391,26093.0,26092.0,0.006]
[1693571627691,0.02,26087.0,26082.0,0.02]
[1693571627909,0.4031,26085.0,26082.0,0.02]
[1693571628115,0.40708678,26084.0,26082.0,0.02]
[1693571628336,0.56192149,26084.0,26083.0,0.01858214]
[1693571628535,0.40708678,26084.0,26083.0,0.01858214]
[1693571629660,0.42408678,26084.0,26083.0,0.01858214]
[1693571630450,1.60721678,26084.0,26083.0,0.01858214]
[1693571630697,1.57421678,26084.0,26083.0,0.01858214]
[1693571630903,2.55238178,26084.0,26083.0,0.01858214]
[1693571631107,2.72928178,26084.0,26080.0,0.040099]
[1693571631312,0.4031,26082.0,26080.0,0.020099]
[1693571631490,1.96044878,26081.0,26080.0,0.020099]
[1693571631748,1.96044878,26081.0,26080.0,0.040099]
[1693571632373,1.96044878,26081.0,26080.0,0.020099]
[1693571632921,2.53557978,26081.0,26080.0,0.020099]
[1693571633589,1.96044878,26081.0,26080.0,0.020099]
[1693571633709,1.38831778,26081.0,26080.0,0.041099]
[1693571633907,1.96344878,26081.0,26080.0,0.021099]
[1693571634525,1.96644878,26081.0,26080.0,0.021099]
[1693571635177,1.96044878,26081.0,26080.0,0.020099]
[1693571635393,1.97044878,26081.0,26080.0,0.020099]
[1693571635602,2.67585878,26081.0,26080.0,0.020099]
[1693571636006,2.60667878,26081.0,26080.0,0.020099]
[1693571636251,1.99154778,26081.0,26080.0,0.020099]
[1693571636498,2.01154778,26081.0,26080.0,0.020099]
[1693571636738,2.58667878,26081.0,26080.0,0.03875908]
[1693571636940,2.56667878,26081.0,26080.0,0.03875908]
[1693571637775,0.43818578,26081.0,26080.0,0.03875908]
[1693571637984,0.39708678,26081.0,26080.0,0.03875908]
[1693571639180,0.97221778,26081.0,26080.0,0.03875908]
[1693571639395,2.54557978,26081.0,26080.0,0.03875908]
[1693571639603,2.76091964,26081.0,26080.0,0.03875908]
[1693571639843,2.54557978,26081.0,26080.0,0.03875908]
[1693571640673,2.56557978,26081.0,26080.0,0.03875908]
[1693571640897,1.99044878,26081.0,26080.0,0.03875908]
[1693571641513,2.56557978,26081.0,26080.0,0.03875908]
[1693571643824,3.67089891,26081.0,26080.0,0.03875908]
[1693571644445,1.52240591,26081.0,26080.0,0.03875908]
[1693571644909,1.11531913,26081.0,26080.0,0.05875908]
[1693571645123,1.11531913,26081.0,26080.0,1.94111808]
[1693571645342,1.11531913,26081.0,26080.0,2.02111808]
[1693571645343,0.01,26081.0,26080.0,2.02111808]
[1693571645557,0.09180344,26087.0,26086.0,0.02]
[1693571645766,0.09180344,26090.0,26086.0,1.30745934]
[1693571645974,1.49214624,26089.0,26087.0,0.71240834]
[1693571646187,1.10505946,26088.0,26087.0,0.73087673]
[1693571646391,1.10505946,26088.0,26087.0,0.59345939]
[1693571647429,1.10505946,26088.0,26087.0,1.16845839]
[1693571647635,1.14105946,26088.0,26087.0,1.16945839]
[1693571647840,1.14105946,26088.0,26087.0,0.59445939]
[1693571648244,1.14105946,26088.0,26087.0,0.01946839]
[1693571648451,1.14105946,26088.0,26087.0,0.59446739]
[1693571648651,1.17705946,26088.0,26087.0,0.59446739]
[1693571648862,1.17705946,26088.0,26087.0,1.16946639]
[1693571649057,1.17705946,26088.0,26087.0,0.01946839]
[1693571650719,1.17705946,26088.0,26087.0,1.28946639]
[1693571651140,1.17705946,26088.0,26087.0,0.71446739]
[1693571652326,1.17705946,26088.0,26087.0,0.13946839]
[1693571653286,1.56414624,26088.0,26087.0,0.13946839]
[1693571653903,1.56414624,26088.0,26087.0,0.01946839]
[1693571653904,3.13720024,26088.0,26087.0,0.01946839]
[1693571654107,3.75217724,26088.0,26087.0,0.01946839]
[1693571654574,2.15912324,26088.0,26087.0,0.001]
[1693571654776,1.58414624,26088.0,26087.0,0.001]
[1693571655045,1.58414624,26088.0,26087.0,0.01960982]
[1693571655249,1.58415864,26088.0,26087.0,0.001]
[1693571656858,2.15913564,26088.0,26087.0,0.001]
[1693571657260,2.73411264,26088.0,26087.0,0.001]
[1693571658477,1.58415864,26088.0,26087.0,0.001]
[1693571658688,1.58415864,26088.0,26087.0,0.01935939]
[1693571659697,2.15913564,26088.0,26087.0,0.01935939]
[1693571661441,3.71218964,26088.0,26087.0,0.01935939]
[1693571664053,4.00089308,26088.0,26087.0,0.01935939]
[1693571664265,4.08117308,26088.0,26087.0,0.001]
[1693571664461,4.09347308,26088.0,26087.0,0.001]
[1693571664662,4.5035348,26088.0,26087.0,0.001]
[1693571665011,5.3966968,26088.0,26087.0,0.001]
[1693571665227,5.77527097,26088.0,26087.0,0.001]
[1693571665424,5.77377097,26088.0,26087.0,0.001]
[1693571665624,5.77821097,26088.0,26087.0,0.001]
[1693571665836,5.75067097,26088.0,26080.0,0.040099]
[1693571665990,5.75067097,26088.0,26080.0,0.17751634]
[1693571665991,1.36530678,26082.0,26080.0,0.17751634]
[1693571666192,1.10525183,26081.0,26080.0,0.040099]
[1693571666391,1.51233861,26081.0,26080.0,0.040099]
[1693571666829,1.51233861,26081.0,26080.0,1.190405]
[1693571666830,1.10525183,26081.0,26080.0,1.190405]
[1693571666996,1.10525183,26081.0,26080.0,1.765558]
[1693571667843,1.10525183,26084.0,26080.0,1.765558]
[1693571668045,0.575051,26085.0,26080.0,1.765558]
[1693571668046,1.49224003,26083.0,26081.0,0.595122]
[1693571668256,1.10515325,26082.0,26081.0,0.595122]
[1693571669667,1.10815325,26082.0,26081.0,1.866384]
[1693571669876,1.10815325,26082.0,26081.0,1.867384]
[1693571670327,1.10815325,26082.0,26081.0,1.866384]
[1693571670529,1.11115325,26082.0,26081.0,2.167384]
[1693571673627,1.11115325,26082.0,26081.0,2.18579164]
[1693571675023,1.08331521,26082.0,26081.0,2.18579164]
[1693571677792,1.08331521,26082.0,26081.0,2.16579164]
[1693571678032,1.08331521,26082.0,26081.0,2.18579164]
[1693571680529,0.006,26082.0,26081.0,2.18579164]
[1693571681718,0.006,26082.0,26081.0,2.16579164]
[1693571681914,0.006,26082.0,26081.0,1.19066064]
[1693571682533,0.006,26082.0,26081.0,1.27066064]
[1693571682938,0.006,26082.0,26081.0,1.76579164]
[1693571683138,0.006,26082.0,26081.0,1.84579164]
[1693571685332,0.006,26082.0,26081.0,1.82579164]
[1693571685535,0.006,26082.0,26081.0,1.76579164]
[1693571688326,0.006,26082.0,26081.0,0.04040764]
[1693571688824,0.39308678,26082.0,26081.0,0.04040764]
[1693571689042,0.41308678,26082.0,26081.0,0.04040764]
[1693571692156,0.006,26082.0,26081.0,0.04040764]
[1693571692394,0.006,26082.0,26081.0,1.30836964]
[1693571693061,0.006,26082.0,26081.0,1.88350064]
[1693571694491,0.006,26082.0,26081.0,2.30350064]
[1693571695056,0.006,26082.0,26081.0,2.54102528]
[1693571695278,0.006,26082.0,26081.0,2.67618224]
[1693571695490,0.006,26082.0,26081.0,3.06332902]
[1693571695699,0.1517,26088.0,26087.0,0.02]
[1693571695894,0.2045,26089.0,26087.0,2.00011434]
[1693571696096,1.10500303,26088.0,26087.0,2.01702187]
[1693571696480,0.09180087,26090.0,26087.0,1.87960453]
[1693571696659,1.1050016,26089.0,26087.0,1.87960453]
[1693571696866,1.1050016,26089.0,26088.0,0.02]
[1693571697074,1.1050016,26089.0,26088.0,1.169954]
[1693571697270,1.1410016,26089.0,26088.0,1.169954]
[1693571698113,1.1770016,26089.0,26088.0,1.172954]
[1693571698320,1.1770016,26089.0,26088.0,1.747931]
[1693571698544,0.072,26089.0,26088.0,2.30534834]
[1693571698766,0.072,26089.0,26088.0,3.13775512]
[1693571698984,0.1569,26093.0,26092.0,0.14]
[1693571699188,0.2184,26095.0,26092.0,0.14]
[1693571699189,0.09180087,26096.0,26095.0,0.02]
[1693571699413,0.61658896,26096.0,26094.0,0.02]
[1693571699625,0.61683476,26095.0,26094.0,0.02]
[1693571699868,0.61681128,26095.0,26094.0,0.02]
[1693571700294,0.47896249,26095.0,26094.0,0.02]
[1693571700735,0.47896249,26095.0,26094.0,0.037]
[1693571700948,0.48096249,26095.0,26094.0,0.064]
[1693571701337,0.48096249,26095.0,26094.0,0.047]
[1693571701620,0.47896249,26095.0,26094.0,0.02]
[1693571701834,0.47896249,26095.0,26094.0,0.021]
[1693571702669,0.48896249,26095.0,26094.0,0.022]
[1693571703086,0.47896249,26095.0,26094.0,0.016545]
[1693571703294,0.47896249,26095.0,26094.0,0.047545]
[1693571703295,0.48196249,26095.0,26094.0,0.047545]
[1693571703504,1.05678449,26095.0,26094.0,0.047545]
[1693571703707,1.05678449,26095.0,26094.0,0.0641525]
[1693571703708,1.07678449,26095.0,26094.0,0.0641525]
[1693571703941,1.07678449,26095.0,26094.0,0.0466075]
[1693571704123,1.65360649,26095.0,26094.0,0.0901525]
[1693571704751,0.063455,26094.0,26088.0,0.574959]
[1693571704969,0.4031,26088.0,26084.0,0.016545]
[1693571705181,0.4031,26086.0,26084.0,0.016545]
[1693571705412,1.86890749,26085.0,26084.0,0.016545]
[1693571705701,2.44395049,26085.0,26082.0,0.016545]
[1693571705933,0.1644,26084.0,26082.0,0.016545]
[1693571706141,0.40708678,26083.0,26082.0,0.016545]
[1693571706789,0.1644,26084.0,26082.0,0.016545]
[1693571706994,0.55148678,26084.0,26083.0,0.016545]
[1693571707196,0.55248678,26084.0,26083.0,0.016545]
[1693571707835,0.55148678,26084.0,26083.0,0.016545]
[1693571708043,0.55248678,26084.0,26083.0,0.016545]
[1693571709276,0.55148678,26084.0,26083.0,0.016545]
[1693571709435,0.55248678,26084.0,26083.0,0.025545]
[1693571709639,0.55448678,26084.0,26083.0,0.036545]
[1693571710007,0.55148678,26084.0,26083.0,0.016545]
[1693571710213,0.1674,26084.0,26083.0,0.034545]
[1693571710413,0.005,26084.0,26083.0,1.781806]
[1693571710828,0.005,26084.0,26083.0,2.268046]
[1693571711030,0.005,26084.0,26083.0,2.201806]
[1693571712379,0.005,26084.0,26083.0,2.2203594]
[1693571712749,0.005,26084.0,26083.0,2.69438618]
[1693571712880,0.005,26084.0,26083.0,2.74604618]
[1693571713083,0.005,26084.0,26083.0,2.73542618]
[1693571713301,0.005,26084.0,26083.0,2.73278618]
[1693571713482,0.005,26084.0,26083.0,2.66744618]
[1693571713686,0.005,26084.0,26083.0,2.60744618]
[1693571713889,0.005,26084.0,26083.0,2.2003594]
[1693571714408,0.005,26084.0,26083.0,2.2203594]
[1693571715309,0.005,26084.0,26083.0,2.1203594]
[1693571715519,0.005,26084.0,26083.0,2.1403594]
[1693571715747,0.005,26084.0,26083.0,2.1203594]
[1693571716392,0.005,26084.0,26083.0,1.2252724]
[1693571716593,0.005,26084.0,26083.0,0.6501854]
[1693571716797,0.005,26084.0,26083.0,1.2252724]
[1693571718753,0.005,26084.0,26083.0,0.6501854]
[1693571719355,0.005,26084.0,26083.0,1.2252724]
[1693571720854,1.129969,26088.0,26083.0,1.2252724]
[1693571721031,1.49219824,26087.0,26083.0,1.36268974]
[1693571721230,1.10511146,26086.0,26083.0,1.2252724]
[1693571721430,1.10511146,26086.0,26083.0,0.6501854]
[1693571721640,1.10511146,26086.0,26085.0,0.016545]
[1693571722021,1.10511146,26086.0,26085.0,0.0351647]
[1693571722218,0.38708678,26087.0,26085.0,0.0351647]
[1693571722552,0.1996,26089.0,26086.0,0.016545]
[1693571722762,0.20360175,26093.0,26090.0,0.016545]
[1693571722763,0.86459811,26093.0,26090.0,0.016545]
[1693571722902,0.24522911,26095.0,26094.0,0.016545]
[1693571723114,1.49192588,26095.0,26094.0,0.15396234]
[1693571723332,1.1048391,26095.0,26094.0,0.72880634]
[1693571723520,1.1048391,26095.0,26094.0,1.30365034]
[1693571723765,1.1048391,26095.0,26094.0,1.897977]
[1693571723940,1.10477212,26096.0,26094.0,1.897977]
[1693571724143,1.10477212,26095.0,26094.0,1.897977]
[1693571724887,0.1577,26097.0,26094.0,1.897977]
[1693571724888,1.10477212,26096.0,26094.0,1.897977]
[1693571725088,1.10477212,26095.0,26094.0,1.741077]
[1693571725299,0.1577,26097.0,26096.0,1.7244]
[1693571725490,1.26242547,26097.0,26096.0,1.740945]
[1693571726927,1.26542547,26097.0,26096.0,1.772945]
[1693571727785,1.10772547,26097.0,26096.0,1.772945]
[1693571728181,1.11172547,26097.0,26096.0,1.808945]
[1693571731598,1.11172547,26097.0,26096.0,2.45344912]
[1693571731795,1.11172547,26097.0,26096.0,2.88637178]
[1693571732003,0.007,26097.0,26096.0,2.88541178]
[1693571732205,0.007,26097.0,26096.0,2.89093178]
[1693571732408,0.007,26097.0,26096.0,2.90041178]
[1693571732611,0.007,26097.0,26096.0,2.91745451]
[1693571732825,0.007,26097.0,26096.0,2.91703451]
[1693571733024,0.007,26097.0,26096.0,2.91667451]
[1693571733229,0.007,26097.0,26096.0,3.52347451]
[1693571733435,0.007,26097.0,26096.0,3.54429451]
[1693571733612,0.007,26097.0,26096.0,3.33615451]
[1693571733822,0.007,26097.0,26096.0,3.2767014]
[1693571734173,0.004,26097.0,26096.0,2.85761462]
[1693571734373,1.14922,26105.0,26104.0,0.016545]
[1693571734578,2.08627625,26105.0,26104.0,0.15396234]
[1693571734775,1.51167325,26105.0,26104.0,0.15396234]
[1693571734978,1.49167325,26105.0,26104.0,0.04243717]
[1693571736264,1.50367325,26105.0,26104.0,0.04343717]
[1693571737183,1.50467325,26105.0,26104.0,0.04343717]
[1693571737500,1.50467325,26105.0,26104.0,0.04243717]
[1693571737501,1.49267325,26105.0,26104.0,0.04243717]
[1693571737751,1.49267325,26105.0,26104.0,0.04343717]
[1693571739900,1.49267325,26105.0,26104.0,0.04382359]
[1693571740509,1.10558647,26105.0,26104.0,0.61844759]
[1693571740919,1.10558647,26105.0,26104.0,0.61806117]
[1693571741122,1.10558647,26105.0,26104.0,1.19268517]
[1693571741749,1.10558647,26105.0,26104.0,1.76730917]
[1693571741956,1.10558647,26105.0,26104.0,2.06730917]
[1693571742301,1.10558647,26105.0,26104.0,2.12730917]
[1693571743100,1.10558647,26105.0,26104.0,2.31798917]
[1693571743300,1.10558647,26105.0,26104.0,2.24730917]
[1693571743796,1.10558647,26105.0,26104.0,2.31376025]
[1693571744202,1.10558647,26105.0,26104.0,2.32654025]
[1693571744407,1.10558647,26105.0,26104.0,2.32840025]
[1693571744635,1.10558647,26105.0,26104.0,2.32042025]
[1693571744836,1.10558647,26105.0,26104.0,2.24788025]
[1693571745151,1.10558647,26105.0,26104.0,2.24688025]
[1693571745571,0.02,26108.0,26107.0,0.016545]
[1693571745776,0.02,26108.0,26107.0,1.897119]
[1693571745967,0.02,26108.0,26107.0,1.465661]
[1693571746176,0.02,26108.0,26107.0,0.891103]
[1693571746378,0.02,26108.0,26107.0,2.040219]
[1693571746984,0.02,26108.0,26107.0,1.465661]
[1693571747254,0.02,26108.0,26107.0,0.016545]
[1693571747255,0.40708678,26108.0,26107.0,0.016545]
[1693571747457,1.53144355,26108.0,26107.0,0.016545]
[1693571747663,1.51444355,26108.0,26107.0,0.628103]
[1693571747867,1.12735677,26108.0,26107.0,0.62855738]
[1693571748276,1.13035677,26108.0,26107.0,1.24011538]
[1693571748685,1.13035677,26108.0,26107.0,1.26588551]
[1693571749095,1.13035677,26108.0,26107.0,0.11676951]
[1693571751815,1.51744355,26108.0,26107.0,0.11676951]
[1693571752577,2.09197955,26108.0,26107.0,0.11676951]
[1693571753778,3.26105155,26108.0,26107.0,0.10022451]
[1693571753979,4.91778111,26108.0,26107.0,0.10022451]
[1693571754764,4.91778111,26108.0,26107.0,0.07445438]
[1693571755318,5.38088111,26108.0,26107.0,0.07445438]
[1693571755524,6.31681952,26108.0,26107.0,0.07445438]
[1693571755730,6.31939952,26108.0,26107.0,0.07445438]
[1693571755955,6.31939952,26108.0,26107.0,0.074]
[1693571755956,6.40401041,26108.0,26107.0,0.074]
[1693571756217,6.40359041,26108.0,26107.0,0.074]
[1693571756447,6.41175041,26108.0,26107.0,0.074]
[1693571756660,6.40197041,26108.0,26107.0,0.037]
[1693571756899,1.723818,26105.0,26102.0,0.016545]